bitfinex-derivatives/quotes_BTCF0:USTF0_20250325
["timestamp","ask_amount","ask_price","bid_price","bid_amount"]
[1742944766680,0.00132,87368.0,87367.0,0.5172659]
[1742944768270,0.0004,87384.0,87377.0,0.057216]
[1742944768475,0.1148238,87384.0,87383.0,0.114425]
[1742944768677,0.11602381,87384.0,87383.0,0.385625]
[1742944769068,0.11602381,87384.0,87383.0,0.4174]
[1742944769782,0.01654943,87384.0,87383.0,0.531825]
[1742944770078,0.01530942,87384.0,87383.0,0.531825]
[1742944770677,0.0004,87384.0,87383.0,0.531825]
[1742944774178,0.114414,87394.0,87393.0,0.1716126]
[1742944774387,0.13003125,87394.0,87393.0,0.3184851]
[1742944775279,0.13003125,87394.0,87393.0,0.5310919]
[1742944775482,0.13003125,87394.0,87393.0,0.41668]
[1742944775685,0.49083125,87394.0,87393.0,0.33958]
[1742944776076,0.64353125,87394.0,87393.0,0.33958]
[1742944786188,0.0572127,87383.0,87379.0,0.02023268]
[1742944786483,0.0572127,87383.0,87368.0,0.27357691]
[1742944786484,0.1144433,87369.0,87368.0,0.04095172]
[1742944786691,0.1144511,87363.0,87362.0,0.18890705]
[1742944786893,0.4760511,87363.0,87362.0,0.15446145]
[1742944787091,0.4760511,87363.0,87336.0,0.54749259]
[1742944787092,0.1144747,87345.0,87336.0,0.54749259]
[1742944787291,0.5860747,87345.0,87344.0,0.47622676]
[1742944787487,0.73667471,87345.0,87344.0,0.47622676]
[1742944787686,0.73667471,87345.0,87343.0,0.08596274]
[1742944787687,0.114476,87344.0,87343.0,0.08596274]
[1742944787891,0.27873414,87344.0,87343.0,0.05590774]
[1742944788097,0.27953414,87344.0,87343.0,0.05510774]
[1742944788297,0.27873414,87344.0,87343.0,0.05510774]
[1742944789888,0.28473414,87344.0,87343.0,0.05510774]
[1742944790089,0.28473414,87344.0,87343.0,0.05470774]
[1742944790993,0.29673414,87344.0,87343.0,0.05470774]
[1742944791585,0.1144852,87337.0,87336.0,0.00017173]
[1742944791782,0.4752852,87337.0,87336.0,0.00017173]
[1742944792486,0.47482724,87337.0,87336.0,0.00017173]
[1742944792886,0.48682724,87337.0,87336.0,0.00017173]
[1742944793081,0.49182724,87337.0,87336.0,0.00017173]
[1742944793287,0.49262724,87337.0,87336.0,0.00017173]
[1742944793687,0.59646724,87337.0,87336.0,0.11017173]
[1742944793898,0.59646724,87337.0,87336.0,0.26187173]
[1742944794899,0.59646724,87337.0,87336.0,0.26147173]
[1742944795794,0.23566724,87337.0,87336.0,0.26147173]
[1742944795984,0.59646724,87337.0,87336.0,0.26207173]
[1742944796184,0.59646724,87337.0,87336.0,0.26147173]
[1742944797289,0.59600928,87337.0,87336.0,0.26147173]
[1742944798601,0.59600928,87337.0,87336.0,0.26207173]
[1742944799385,0.59600928,87337.0,87336.0,0.0006]
[1742944799591,0.59600928,87337.0,87336.0,0.153]
[1742944799796,0.59600928,87337.0,87336.0,0.1526]
[1742944800301,0.1144865,87336.0,87335.0,8e-05]
[1742944800494,0.1144957,87329.0,87328.0,0.00017173]
[1742944800695,0.4760957,87329.0,87328.0,0.11097173]
[1742944800891,0.4760957,87329.0,87328.0,0.18297173]
[1742944801695,0.4810957,87329.0,87328.0,0.18297173]
[1742944802300,0.48063774,87329.0,87328.0,0.18297173]
[1742944802892,0.48463774,87329.0,87328.0,0.18297173]
[1742944803087,0.48463774,87329.0,87328.0,0.25787173]
[1742944803508,0.59551774,87329.0,87328.0,0.25787173]
[1742944810911,0.48463774,87329.0,87328.0,0.2726685]
[1742944817407,0.48463774,87329.0,87328.0,0.28762951]
[1742944820807,0.48463774,87329.0,87328.0,0.28765431]
[1742944823208,0.48463774,87329.0,87328.0,0.2726685]
[1742944823412,0.48463774,87329.0,87328.0,0.1626685]
[1742944823611,0.48463774,87329.0,87328.0,0.1618685]
[1742944823612,0.48733774,87329.0,87328.0,0.1618685]
[1742944825520,0.54300531,87329.0,87328.0,0.1618685]
[1742944826919,0.54300531,87329.0,87328.0,0.14707173]
[1742944827509,0.54300531,87329.0,87328.0,0.25707173]
[1742944828623,0.67722225,87329.0,87328.0,0.25707173]
[1742944829018,0.67722225,87329.0,87328.0,0.14707173]
[1742944830220,0.68032225,87329.0,87328.0,0.14707173]
[1742944831211,0.67452225,87329.0,87328.0,0.14707173]
[1742944832524,0.67452225,87329.0,87327.0,0.00045805]
[1742944832525,0.57098451,87329.0,87327.0,8e-08]
[1742944832718,0.57098451,87329.0,87272.0,0.83156]
[1742944832719,0.1145154,87314.0,87313.0,0.04]
[1742944833028,0.5869954,87314.0,87313.0,0.02]
[1742944833428,0.5869954,87314.0,87313.0,0.1749]
[1742944834124,0.5879954,87314.0,87313.0,0.1749]
[1742944836317,0.5889954,87314.0,87313.0,0.1749]
[1742944836921,0.64466297,87314.0,87313.0,0.1749]
[1742944837729,0.65327373,87314.0,87313.0,0.1749]
[1742944842323,0.54239373,87314.0,87313.0,0.1749]
[1742944842517,0.29796757,87314.0,87313.0,0.1749]
[1742944842718,0.41308298,87314.0,87313.0,0.1755]
[1742944843628,0.41308298,87314.0,87313.0,0.18974554]
[1742944843826,0.41308298,87314.0,87313.0,0.19042554]
[1742944844735,0.35741541,87314.0,87313.0,0.19042554]
[1742944845431,0.11511541,87314.0,87313.0,0.20554728]
[1742944848032,0.11511541,87314.0,87313.0,0.20547841]
[1742944848335,0.00060001,87314.0,87313.0,0.30494224]
[1742944848531,0.13637346,87318.0,87314.0,0.0572576]
[1742944848831,0.1145141,87316.0,87315.0,0.12935924]
[1742944849132,0.1145141,87316.0,87315.0,0.47294554]
[1742944849536,0.1145141,87316.0,87315.0,0.47362554]
[1742944849732,0.1145141,87316.0,87315.0,0.47294554]
[1742944850231,0.1155141,87316.0,87315.0,0.47294554]
[1742944850823,0.1155141,87316.0,87315.0,0.58745964]
[1742944851234,0.001,87316.0,87315.0,0.58745964]
[1742944851425,0.1155128,87316.0,87315.0,0.58745964]
[1742944851627,0.001,87316.0,87315.0,0.60264653]
[1742944852036,0.1175128,87316.0,87315.0,0.60264653]
[1742944852238,0.1175128,87316.0,87315.0,0.60264652]
[1742944852533,0.003,87316.0,87315.0,0.60264652]
[1742944852739,0.1175128,87316.0,87315.0,0.60264652]
[1742944854630,0.11811281,87316.0,87315.0,0.60324652]
[1742944856743,0.11811281,87316.0,87315.0,0.47354554]
[1742944856939,0.22899281,87316.0,87315.0,0.47354554]
[1742944857146,0.22899281,87316.0,87315.0,0.39734554]
[1742944860638,0.28466774,87316.0,87315.0,0.39734554]
[1742944866847,0.28466774,87316.0,87315.0,0.24544554]
[1742944867046,0.28466774,87316.0,87315.0,0.24484554]
[1742944867251,0.28466774,87316.0,87315.0,0.24544554]
[1742944867441,0.29526774,87316.0,87315.0,0.24544554]
[1742944869149,0.17378774,87316.0,87315.0,0.24544554]
[1742944869351,0.28466774,87316.0,87315.0,0.24544554]
[1742944869552,0.17378774,87316.0,87315.0,0.24544554]
[1742944869755,0.28466774,87316.0,87315.0,0.24544554]
[1742944869954,0.28466774,87316.0,87315.0,0.39934554]
[1742944870151,0.17378774,87316.0,87315.0,0.39934554]
[1742944870743,0.05927494,87316.0,87315.0,0.39934554]
[1742944871262,0.05927494,87316.0,87315.0,0.52907294]
[1742944871651,0.17378774,87316.0,87315.0,0.41455884]
[1742944871850,0.11811281,87316.0,87315.0,0.41455884]
[1742944872470,0.11811281,87316.0,87315.0,0.41452766]
[1742944874471,0.00360001,87316.0,87315.0,0.51385964]
[1742944874668,0.00360001,87316.0,87315.0,0.88983289]
[1742944874867,0.0572366,87347.0,87321.0,0.1145062]
[1742944875075,0.1144957,87329.0,87328.0,0.3608]
[1742944875274,0.11509571,87329.0,87328.0,0.64673325]
[1742944875477,0.1144957,87329.0,87328.0,0.64673325]
[1742944875663,0.1144957,87329.0,87328.0,0.90933025]
[1742944875862,0.1144957,87329.0,87328.0,0.92417579]
[1742944876062,0.1144957,87329.0,87328.0,0.80967879]
[1742944876262,0.1152557,87329.0,87328.0,0.80967879]
[1742944876463,0.1192557,87329.0,87328.0,0.80967879]
[1742944876674,0.1192557,87329.0,87328.0,0.80966364]
[1742944877263,0.1192557,87329.0,87328.0,0.44886364]
[1742944877676,0.1192557,87329.0,87328.0,0.44882576]
[1742944878559,0.1242557,87329.0,87328.0,0.44882576]
[1742944880172,0.1242557,87329.0,87328.0,0.43370554]
[1742944881581,0.1242557,87329.0,87328.0,0.54820254]
[1742944881781,0.00976,87329.0,87328.0,0.54820254]
[1742944881967,0.009,87329.0,87328.0,0.54820254]
[1742944883173,0.10232974,87332.0,87331.0,0.1144931]
[1742944883367,0.0004,87336.0,87335.0,0.1144878]
[1742944883573,0.00017173,87337.0,87336.0,0.1144865]
[1742944883879,0.00077174,87337.0,87336.0,0.3757665]
[1742944884075,0.00017173,87337.0,87336.0,0.39061204]
[1742944884277,0.00137174,87337.0,87336.0,0.39061204]
[1742944884580,0.00091378,87337.0,87336.0,0.39061204]
[1742944884982,0.13643966,87340.0,87339.0,0.1144826]
[1742944885186,0.13771966,87340.0,87339.0,0.3957626]
[1742944885781,0.13771966,87340.0,87339.0,0.41060814]
[1742944886283,0.13643966,87340.0,87339.0,0.41060814]
[1742944886485,0.14875966,87340.0,87339.0,0.41060814]
[1742944886977,0.14875966,87340.0,87339.0,0.77100814]
[1742944887181,0.14743966,87340.0,87339.0,0.84650814]
[1742944887385,0.14743966,87340.0,87339.0,0.99430814]
[1742944888282,0.00017173,87348.0,87347.0,0.1144721]
[1742944888583,0.11524254,87348.0,87347.0,0.6571492]
[1742944888882,0.11592253,87348.0,87347.0,0.9226213]
[1742944889083,0.11464253,87348.0,87347.0,0.9226213]
[1742944889276,0.11464253,87348.0,87347.0,0.93746684]
[1742944889677,0.01117173,87348.0,87347.0,0.92243764]
[1742944891578,0.0004,87352.0,87351.0,0.1144669]
[1742944891789,0.0004,87352.0,87351.0,0.3657469]
[1742944891988,0.01354796,87362.0,87355.0,0.1144616]
[1742944892196,0.13749517,87356.0,87355.0,0.7265416]
[1742944892484,0.0572269,87361.0,87355.0,0.62692554]
[1742944892690,0.114459,87357.0,87356.0,0.1483]
[1742944892888,0.114459,87357.0,87356.0,0.38958]
[1742944893088,0.115779,87357.0,87356.0,0.38958]
[1742944893391,0.115779,87357.0,87356.0,0.51888584]
[1742944894087,0.00132,87357.0,87356.0,0.51888584]
[1742944894280,0.00086212,87357.0,87356.0,0.51888584]
[1742944894788,0.184256,87360.0,87359.0,0.1144564]
[1742944894977,0.185696,87360.0,87359.0,0.3758964]
[1742944895778,0.185696,87360.0,87359.0,0.39074194]
[1742944896282,0.07124,87360.0,87359.0,0.39074194]
[1742944896687,0.07124,87360.0,87359.0,0.39034194]
[1742944897190,0.1856951,87360.0,87359.0,0.27628554]
[1742944897774,0.1856951,87360.0,87359.0,0.41928554]
[1742944898579,0.1856951,87360.0,87359.0,0.34858554]
[1742944898773,0.1856951,87360.0,87359.0,0.33374]
[1742944899287,0.1856951,87360.0,87359.0,0.00189788]
[1742944899587,0.114476,87344.0,87343.0,0.00045796]
[1742944899778,0.47587601,87344.0,87343.0,0.02045796]
[1742944899977,0.47587601,87344.0,87343.0,0.02145796]
[1742944900188,0.54797601,87344.0,87343.0,0.03523236]
[1742944901190,0.90877601,87344.0,87343.0,0.03523236]
[1742944903389,0.90877601,87344.0,87343.0,0.10543236]
[1742944906095,0.54797601,87344.0,87343.0,0.10543236]
[1742944909991,0.22587601,87344.0,87343.0,0.46623236]
[1742944910191,0.22587601,87344.0,87343.0,0.17787236]
[1742944911491,0.22587601,87344.0,87343.0,0.10647236]
[1742944911698,0.58667601,87344.0,87343.0,0.10647236]
[1742944911996,0.65997601,87344.0,87343.0,0.03523236]
[1742944913084,0.65997601,87344.0,87343.0,0.10763236]
[1742944915794,0.65917601,87344.0,87343.0,0.10763236]
[1742944915993,0.58667601,87344.0,87343.0,0.10763236]
[1742944926503,0.22587601,87344.0,87343.0,0.10763236]
[1742944928805,0.11507601,87344.0,87343.0,0.10763236]
[1742944929004,0.22587601,87344.0,87343.0,0.10863236]
[1742944929201,0.22587601,87344.0,87343.0,0.10763236]
[1742944932800,0.11507601,87344.0,87343.0,0.10763236]
[1742944933000,0.22587601,87344.0,87343.0,0.10763236]
[1742944933398,0.22587601,87344.0,87343.0,0.12285542]
[1742944934000,0.39630334,87344.0,87343.0,0.12285542]
[1742944934204,0.39630334,87344.0,87343.0,0.12389542]
[1742944934410,0.39630334,87344.0,87343.0,0.12285542]
[1742944937009,0.39630334,87344.0,87343.0,0.10763236]
[1742944937201,0.22587601,87344.0,87343.0,0.10763236]
[1742944937508,0.22587601,87344.0,87343.0,0.12289724]
[1742944937710,0.22587601,87344.0,87343.0,0.1228972]
[1742944938209,0.22587601,87344.0,87343.0,0.12289717]
[1742944942208,0.22587601,87344.0,87343.0,0.10763236]
[1742944944509,0.30577601,87344.0,87343.0,0.10763236]
[1742944944711,0.47620334,87344.0,87343.0,0.10763236]
[1742944946118,0.47620334,87344.0,87343.0,0.05045397]
[1742944946312,0.11448,87341.0,87340.0,0.0745]
[1742944946514,0.11508001,87341.0,87340.0,0.1245]
[1742944947422,0.11508001,87341.0,87340.0,0.1241]
[1742944949525,0.11508001,87341.0,87340.0,0.1979]
[1742944949927,0.11462205,87341.0,87340.0,0.1979]
[1742944952323,0.11462205,87341.0,87340.0,0.1975]
[1742944952928,0.11462205,87341.0,87340.0,0.1985]
[1742944954727,0.11416409,87341.0,87340.0,0.1985]
[1742944956118,0.18676409,87341.0,87340.0,0.1985]
[1742944957224,0.114497,87328.0,87317.0,0.27403447]
[1742944957527,0.586737,87328.0,87327.0,0.00113805]
[1742944957829,0.1145036,87323.0,87322.0,0.0704]
[1742944958136,0.47618361,87323.0,87322.0,0.071]
[1742944958442,0.47618361,87323.0,87322.0,0.08601729]
[1742944958619,0.48491428,87323.0,87322.0,0.08601729]
[1742944959016,0.49807086,87323.0,87322.0,0.08601729]
[1742944959629,0.49807086,87323.0,87322.0,0.08561729]
[1742944959826,0.49761281,87323.0,87322.0,0.08561729]
[1742944960228,0.49761281,87323.0,87322.0,0.01501729]
[1742944960433,0.0572563,87317.0,87307.0,0.0746]
[1742944960623,0.4753167,87313.0,87312.0,0.40374547]
[1742944960817,0.47635671,87313.0,87312.0,0.40374547]
[1742944962327,0.11509875,87313.0,87312.0,0.06068]
[1742944962526,0.83669875,87313.0,87312.0,0.06]
[1742944963431,0.91219875,87313.0,87312.0,0.06]
[1742944963628,0.91219875,87313.0,87312.0,0.1367]
[1742944964137,0.91519875,87313.0,87312.0,0.1367]
[1742944965530,0.91519875,87313.0,87312.0,0.2074]
[1742944965953,0.95049875,87313.0,87312.0,0.2074]
[1742944970443,0.58969875,87313.0,87312.0,0.2074]
[1742944970635,0.58969875,87313.0,87312.0,0.208]
[1742944972643,0.58969875,87313.0,87312.0,0.22297194]
[1742944973244,0.47889875,87313.0,87312.0,0.22297194]
[1742944973451,0.58969875,87313.0,87312.0,0.22297194]
[1742944974535,0.47889875,87313.0,87312.0,0.22297194]
[1742944974851,0.58969875,87313.0,87312.0,0.22297194]
[1742944975651,0.01315658,87323.0,87317.0,0.1145108]
[1742944975843,0.1145088,87319.0,87318.0,0.1447]
[1742944976041,0.1152688,87319.0,87318.0,0.39538]
[1742944976241,0.1152688,87319.0,87318.0,0.41035194]
[1742944978441,0.00076,87319.0,87318.0,0.52486204]
[1742944978749,0.1145088,87319.0,87318.0,0.52486204]
[1742944979237,0.0004,87320.0,87319.0,0.1145088]
[1742944979441,0.1156275,87320.0,87319.0,0.33122]
[1742944979647,0.1156275,87320.0,87319.0,0.5153288]
[1742944980241,0.00112,87320.0,87319.0,0.5153288]
[1742944980539,0.1156275,87320.0,87319.0,0.53030074]
[1742944980955,0.1156275,87320.0,87319.0,0.43093425]
[1742944982141,0.00112,87320.0,87319.0,0.54544305]
[1742944982650,0.0004,87320.0,87319.0,0.54544305]
[1742944985846,0.0004,87320.0,87319.0,0.54532899]
[1742944988466,0.0004,87320.0,87319.0,0.54534576]
[1742944988760,0.00017173,87331.0,87330.0,0.1144944]
[1742944988959,0.00017173,87331.0,87330.0,0.7252944]
[1742944989163,0.00017173,87331.0,87330.0,0.74086634]
[1742944989357,0.00017173,87331.0,87330.0,0.90292713]
[1742944989654,0.13590068,87339.0,87335.0,0.1144878]
[1742944989856,0.13590068,87339.0,87335.0,0.3650878]
[1742944990251,0.13590068,87339.0,87335.0,0.5140878]
[1742944990861,0.13590068,87339.0,87335.0,0.52905974]
[1742944991362,0.13590068,87339.0,87335.0,0.54396027]
[1742944991961,0.13590068,87339.0,87335.0,0.52905974]
[1742944992949,0.1144774,87343.0,87335.0,0.52905974]
[1742944992950,0.00017173,87344.0,87335.0,0.52905974]
[1742944993550,0.00017173,87344.0,87343.0,0.1144774]
[1742944993756,0.24666068,87354.0,87351.0,0.1144669]
[1742944994061,0.13590068,87354.0,87353.0,0.1144642]
[1742944994268,0.13654068,87354.0,87353.0,0.3851442]
[1742944994469,0.13590068,87354.0,87353.0,0.3851442]
[1742944994767,0.13590068,87354.0,87353.0,0.40011614]
[1742944994965,0.13590068,87354.0,87353.0,0.54481614]
[1742944995464,0.13590068,87354.0,87353.0,0.55761342]
[1742944996358,0.1354428,87354.0,87353.0,0.55761342]
[1742944996968,0.18006,87370.0,87367.0,0.1144459]
[1742944997259,0.00104,87368.0,87367.0,0.7059259]
[1742944997475,0.0004,87368.0,87367.0,0.72089784]
[1742944998164,0.0004,87368.0,87367.0,0.86969784]
[1742944998359,0.0004,87368.0,87367.0,0.8547259]
[1742944998757,0.0004,87368.0,87367.0,0.86742914]
[1742944998958,0.0004,87368.0,87367.0,0.86702914]
[1742945000662,0.0004,87368.0,87367.0,0.88179517]
[1742945002166,0.0004,87368.0,87367.0,1.24259517]
[1742945002467,0.0004,87368.0,87367.0,0.88179517]
[1742945002675,0.0004,87368.0,87367.0,0.86909193]
[1742945002965,0.0004,87368.0,87367.0,0.79429193]
[1742945003163,0.00104,87368.0,87367.0,0.79469193]
[1742945003358,0.0004,87368.0,87367.0,0.79469193]
[1742945004565,0.0004,87368.0,87367.0,0.86829193]
[1742945005267,0.00100001,87368.0,87367.0,0.86829193]
[1742945006266,0.00100001,87368.0,87367.0,0.8535259]
[1742945006468,0.00100001,87368.0,87367.0,0.86837374]
[1742945006865,0.00100001,87368.0,87367.0,0.75392784]
[1742945009771,0.14790001,87368.0,87367.0,0.75392784]
[1742945011162,0.26234461,87368.0,87367.0,0.75392784]
[1742945013373,0.26234461,87368.0,87367.0,0.39312784]
[1742945013574,0.18884461,87368.0,87367.0,0.39312784]
[1742945013777,0.18884461,87368.0,87367.0,0.24552784]
[1742945014073,0.18884461,87368.0,87367.0,0.31552784]
[1742945014659,0.25884461,87368.0,87367.0,0.31552784]
[1742945016579,0.25884461,87368.0,87367.0,0.24552784]
[1742945016772,0.36952461,87368.0,87367.0,0.24552784]
[1742945017770,0.73032461,87368.0,87367.0,0.24552784]
[1742945018077,0.73032461,87368.0,87367.0,0.24484784]
[1742945020569,0.73032461,87368.0,87367.0,0.24556784]
[1742945024081,0.73032461,87368.0,87367.0,0.10786158]
[1742945024283,0.73032461,87368.0,87367.0,0.01484784]
[1742945026079,0.1144551,87360.0,87359.0,2e-08]
[1742945026279,0.47585511,87360.0,87359.0,2e-08]
[1742945026481,0.79513117,87360.0,87359.0,2e-08]
[1742945026784,0.1144577,87358.0,87357.0,2e-08]
[1742945026986,0.22573771,87358.0,87357.0,2e-08]
[1742945027484,0.36863771,87358.0,87357.0,2e-08]
[1742945027687,0.1144734,87346.0,87345.0,0.00017173]
[1742945027885,0.5866334,87346.0,87345.0,0.18611173]
[1742945028784,0.6575334,87346.0,87345.0,0.18611173]
[1742945029377,0.5866334,87346.0,87345.0,0.18611173]
[1742945030083,0.5989078,87346.0,87345.0,0.18611173]
[1742945031886,0.5989078,87346.0,87345.0,0.30058643]
[1742945031887,0.0129544,87346.0,87345.0,0.30058643]
[1742945032078,0.0122744,87346.0,87345.0,0.18611173]
[1742945032273,0.11107998,87352.0,87348.0,0.057235]
[1742945032482,0.05827278,87352.0,87349.0,0.6371345]
[1742945032682,0.1144682,87350.0,87349.0,0.9171345]
[1742945032872,0.1144682,87350.0,87349.0,0.9177745]
[1742945033076,0.1144682,87350.0,87349.0,0.86054]
[1742945033275,0.1151082,87350.0,87349.0,0.49974]
[1742945033687,0.12784934,87350.0,87349.0,0.49974]
[1742945034189,0.22998987,87350.0,87349.0,0.49974]
[1742945035387,0.21724873,87350.0,87349.0,0.49974]
[1742945036192,0.21724873,87350.0,87349.0,0.6142095]
[1742945036489,0.21724873,87350.0,87349.0,0.9750095]
[1742945036674,0.21724873,87350.0,87349.0,0.86054]
[1742945037085,0.1151082,87350.0,87349.0,0.86054]
[1742945038287,0.1151082,87350.0,87349.0,0.87544894]
[1742945042492,0.1151082,87350.0,87349.0,0.51464894]
[1742945045177,0.17063421,87368.0,87350.0,0.0572341]
[1742945045395,0.17063421,87368.0,87356.0,0.4752603]
[1742945045396,0.00084,87357.0,87356.0,0.4752603]
[1742945045580,0.17155421,87368.0,87357.0,0.1144586]
[1742945045581,0.0572251,87364.0,87357.0,0.1144586]
[1742945045781,0.00084,87364.0,87358.0,0.01487278]
[1742945045994,0.17063421,87368.0,87359.0,0.14330048]
[1742945046178,0.1144522,87363.0,87361.0,0.1144529]
[1742945046381,0.1152922,87363.0,87362.0,0.1144525]
[1742945046594,0.1152922,87363.0,87362.0,0.2953725]
[1742945046797,0.1152922,87363.0,87362.0,0.31028144]
[1742945047089,0.1152922,87363.0,87362.0,0.32496647]
[1742945047285,0.1152922,87363.0,87362.0,0.32496676]
[1742945047484,0.1152922,87363.0,87362.0,0.31028144]
[1742945048083,0.11533221,87363.0,87362.0,0.31028144]
[1742945048502,0.00088001,87363.0,87362.0,0.19582894]
[1742945048794,0.1144511,87363.0,87362.0,0.31028144]
[1742945049095,0.00084,87363.0,87362.0,0.31028144]
[1742945049295,0.0572249,87365.0,87362.0,0.19582894]
[1742945049296,0.1144508,87364.0,87362.0,0.19582894]
[1742945049495,0.1144511,87363.0,87362.0,0.19582894]
[1742945049690,0.1152911,87363.0,87362.0,0.31028144]
[1742945049892,0.00084,87363.0,87362.0,0.31028144]
[1742945050197,0.1152911,87363.0,87362.0,0.31028144]
[1742945052189,0.00084,87363.0,87362.0,0.31028144]
[1742945052396,0.00084,87363.0,87362.0,0.67108144]
[1742945052694,0.0572249,87365.0,87364.0,0.1144498]
[1742945052884,0.0572249,87365.0,87364.0,0.3452898]
[1742945053082,0.0572249,87365.0,87364.0,0.36019874]
[1742945053681,0.057223,87367.0,87366.0,0.1144472]
[1742945053897,0.058063,87367.0,87366.0,0.3752872]
[1742945054387,0.058063,87367.0,87366.0,0.39019614]
[1742945054899,0.00084,87367.0,87366.0,0.39019614]
[1742945055082,0.0004,87368.0,87367.0,0.1144459]
[1742945055286,0.0004,87368.0,87367.0,0.3953659]
[1742945055598,0.0004,87368.0,87367.0,0.41027484]
[1742945058003,0.0004,87368.0,87367.0,0.48307484]
[1742945060695,0.0004,87368.0,87367.0,0.36862894]
[1742945060907,0.1148446,87368.0,87367.0,0.36862894]
[1742945061088,0.11572461,87368.0,87367.0,0.36862894]
[1742945061290,0.26302461,87368.0,87367.0,0.36862894]
[1742945061998,0.00128001,87368.0,87367.0,0.48307484]
[1742945062199,0.0004,87368.0,87367.0,0.48307484]
[1742945062996,0.0004,87368.0,87367.0,0.5414659]
[1742945063606,0.1148446,87368.0,87367.0,0.5414659]
[1742945064494,0.1148446,87368.0,87367.0,0.55617685]
[1742945064894,0.0004,87368.0,87367.0,0.55617685]
[1742945065707,0.1148446,87368.0,87367.0,0.55617685]
[1742945065910,0.0004,87368.0,87367.0,0.55617685]
[1742945069616,0.0004,87368.0,87367.0,0.5414659]
[1742945069810,0.114428,87381.0,87380.0,0.0572144]
[1742945070012,0.115348,87381.0,87380.0,0.3181344]
[1742945070311,0.115348,87381.0,87380.0,0.5469344]
[1742945070507,0.192448,87381.0,87380.0,0.5469344]
[1742945070905,0.00092,87381.0,87380.0,0.5469344]
[1742945071503,0.13625743,87382.0,87381.0,0.1144276]
[1742945071807,0.13625743,87382.0,87381.0,0.20084]
[1742945072008,0.0755,87382.0,87381.0,0.34794]
[1742945072215,0.07610001,87382.0,87381.0,0.34794]
[1742945072606,0.07610001,87382.0,87381.0,0.4623676]
[1742945072910,0.00060001,87382.0,87381.0,0.4623676]
[1742945073315,0.07430001,87382.0,87381.0,0.4623676]
[1742945074010,0.18872631,87382.0,87381.0,0.4623676]
[1742945074407,0.07430001,87382.0,87381.0,0.4623676]
[1742945074616,0.00060001,87382.0,87381.0,0.4623676]
[1742945074805,0.0004,87384.0,87383.0,0.114425]
[1742945075118,0.00128001,87384.0,87383.0,0.385305]
[1742945075909,0.11570361,87384.0,87383.0,0.385305]
[1742945076111,0.18830361,87384.0,87383.0,0.385305]
[1742945077411,0.33850361,87384.0,87383.0,0.385305]
[1742945078105,0.33850361,87384.0,87383.0,0.535405]
[1742945078310,0.33850361,87384.0,87383.0,0.42098]
[1742945078712,0.33850361,87384.0,87383.0,0.535405]
[1742945079417,0.26410361,87384.0,87383.0,0.535405]
[1742945079618,0.26410361,87384.0,87383.0,0.610005]
[1742945082521,0.26410361,87384.0,87383.0,0.49558]
[1742945082716,0.26410361,87384.0,87383.0,0.610005]
[1742945084123,0.26410361,87384.0,87383.0,0.27088]
[1742945084306,0.26410361,87384.0,87383.0,0.41728]
[1742945084713,0.26410361,87384.0,87383.0,0.531705]
[1742945084920,0.26410361,87384.0,87383.0,0.41728]
[1742945085714,0.26410361,87384.0,87383.0,0.43196403]
[1742945086111,0.26410361,87384.0,87383.0,0.41728]
[1742945086411,0.43433782,87384.0,87383.0,0.41728]
[1742945087723,0.43433782,87384.0,87383.0,0.531705]
[1742945087918,0.43433782,87384.0,87383.0,0.41728]
[1742945089728,0.31972921,87384.0,87383.0,0.41728]
[1742945091324,0.24392921,87384.0,87383.0,0.41728]
[1742945093427,0.18830361,87384.0,87383.0,0.41728]
[1742945095137,0.26040361,87384.0,87383.0,0.41728]
[1742945097118,0.27245527,87384.0,87383.0,0.41728]
[1742945103836,0.32808128,87384.0,87383.0,0.41728]
[1742945105827,0.1144341,87376.0,87375.0,0.00045779]
[1742945106041,0.2249941,87376.0,87375.0,0.0006]
[1742945106239,0.2256341,87376.0,87375.0,0.0006]
[1742945106443,0.4477341,87376.0,87375.0,0.0006]
[1742945106949,0.4477341,87376.0,87375.0,0.0202]
[1742945107246,0.4477341,87376.0,87375.0,0.034957]
[1742945108040,0.4477341,87376.0,87375.0,0.186057]
[1742945108528,0.1874741,87376.0,87375.0,0.186057]
[1742945108731,0.2980741,87376.0,87375.0,0.186697]
[1742945108930,0.3697741,87376.0,87375.0,0.186057]
[1742945109229,0.3697741,87376.0,87375.0,0.263357]
[1742945109430,0.3697741,87376.0,87375.0,0.264077]
[1742945109832,0.3697741,87376.0,87375.0,0.26453479]
[1742945111940,0.62947486,87376.0,87375.0,0.26453479]
[1742945115450,0.42540667,87376.0,87375.0,0.26453479]
[1742945115851,0.35370667,87376.0,87375.0,0.26453479]
[1742945116149,0.24350667,87376.0,87375.0,0.18843479]
[1742945116350,0.31740667,87376.0,87375.0,0.18843479]
[1742945117347,0.31740667,87376.0,87375.0,0.17367779]
[1742945118144,0.31740667,87376.0,87375.0,0.17295779]
[1742945118345,0.39070667,87376.0,87375.0,0.17295779]
[1742945118843,0.0572183,87375.0,87366.0,0.2060267]
[1742945119048,0.475238,87373.0,87372.0,0.10077173]
[1742945119255,0.475958,87373.0,87372.0,0.10077173]
[1742945119648,0.624258,87373.0,87372.0,0.10077173]
[1742945121051,0.624258,87373.0,87372.0,0.10037173]
[1742945121455,0.624258,87373.0,87372.0,0.24697173]
[1742945123346,0.67943696,87373.0,87372.0,0.24697173]
[1742945123562,0.67943696,87373.0,87372.0,0.24637173]
[1742945123854,0.67943696,87373.0,87372.0,0.24697173]
[1742945125345,0.60583696,87373.0,87372.0,0.24697173]
[1742945125746,0.60583696,87373.0,87372.0,0.24657173]
[1742945126856,0.72485834,87373.0,87372.0,0.24657173]
[1742945127057,0.72485834,87373.0,87372.0,0.24597173]
[1742945128362,0.72440055,87373.0,87372.0,0.24597173]
[1742945129649,0.54974242,87373.0,87372.0,0.24597173]
[1742945130155,0.61944242,87373.0,87372.0,0.24597173]
[1742945130856,0.61944242,87373.0,87372.0,0.24557173]
[1742945132854,0.68614242,87373.0,87372.0,0.24557173]
[1742945133050,0.68568463,87373.0,87372.0,0.24557173]
[1742945133454,0.68568463,87373.0,87372.0,0.24617173]
[1742945134053,0.68568463,87373.0,87372.0,0.09957173]
[1742945134259,0.1144407,87371.0,87370.0,1e-07]
[1742945134455,0.1144407,87371.0,87364.0,0.00017173]
[1742945134456,0.1144485,87365.0,87364.0,0.00017173]
[1742945134754,0.5865285,87365.0,87364.0,3e-08]
[1742945135046,0.5865285,87365.0,87364.0,0.03473991]
[1742945135249,0.5865285,87365.0,87364.0,0.03541988]
[1742945135452,0.7264285,87365.0,87364.0,0.03541988]
[1742945136450,0.7264285,87365.0,87364.0,8e-08]
[1742945137051,0.7264285,87365.0,87359.0,6e-08]
[1742945137052,0.1144551,87360.0,87359.0,6e-08]
[1742945137251,0.1144642,87353.0,87352.0,0.0973839]
[1742945137463,0.5875842,87353.0,87352.0,0.0654382]